Cogmind - Beta 11.1 @@@ ROGUE MODE // 2022.06.14 @ 15:20:39 Player: Exp. Geonium Core Result: Destroyed by B-75 Beast with Magnetic Acceleration Cannon Performance ------------- Evolutions (4) 2000 Regions Visited (12) 2400 Robots Destroyed (78) 390 Value Destroyed (2271) 2271 Prototype IDs (31) 620 Alien Tech Used (0) 0 Bonus (1415) 1415 TOTAL SCORE: 9096 Bonus ------- Follower Combat Kills 515 Aligned with FarCom 300 Met Imprinter 300 Was Imprinted 300 Cogmind --------- Core Integrity 0/850 Matter 261/300 Energy 65/100 System Corruption 0% Temperature Cool (12) Movement Core (50) Location -6/Extension Parts ------- > --- POWER (1) -------- (None) > --- PROPULSION (5) --- (None) > --- UTILITY (7) ------ Experimental Signal Interpreter Advanced Target Analyzer Improved Armor Integrity Analyzer > --- WEAPON (2) ------- (None) > --- INVENTORY (5) ---- Launcher Loader Makeshift Hacking Suite Peak State ------------ > --- POWER ------------ Fission Core > --- PROPULSION ------- Gravmag System Gravmag System Gravmag System Improved Gravmag System Combat Airjet > --- UTILITY ---------- Medium Storage Unit Spectral Analyzer Improved Sensor Array Experimental Signal Interpreter Experimental Targeting Computer Advanced Target Analyzer Improved Armor Integrity Analyzer > --- WEAPON ----------- Autogun Autogun > --- INVENTORY -------- Launcher Loader Improved Medium Armor Plating Makeshift Hacking Suite Corruption Screen Trap Reconfigurator Hypervelocity Gauss Rifle Hypervelocity Gauss Rifle Power Maul CR-A16's Pointy Stick [Rating: 76] Favorites ----------- Power Light Nuclear Core Engine Improved Deuterium Engine Power Core Light Nuclear Core Reactor Light Antimatter Reactor Propulsion Light Treads Treads Light Treads Leg Makeshift Leg Wheel Compact Wheel Hover Unit Gravmag System Flight Unit Flight Unit Utility Small Storage Unit Device Improved Sensor Array Storage Small Storage Unit Processor Targeting Computer Hackware Hacking Suite Protection Light Armor Plating Weapon Autogun Energy Gun Particle Gun Energy Cannon Improved EM Pulse Cannon Ballistic Gun Autogun Ballistic Cannon Assault Cannon Launcher Missile Launcher Special Weapon Plasma Cutter Impact Weapon Power Maul Piercing Weapon Makeshift Spear Build | -11 -10 -10 -10 -9 -8 -7 -7 -7 -7 -6 -6 -6 ------- Run | Scr Mat Min Exi Min Mat Fac Low Low Zio Pro Fac Ext Slots Evolved 8 | . . . . . 4 2 . . . . 2 . Power . | . . . . . . . . . . . . . Propulsion 3 | . . . . . 1 2 . . . . . . Utility 5 | . . . . . 3 . . . . . 2 . Weapon . | . . . . . . . . . . . . . Parts Attached 113 | . 8 1 3 . 19 26 5 6 19 2 15 9 Power 9 | . 1 1 . . 2 2 1 . 1 . 1 . Engine 4 | . 1 . . . 1 1 1 . . . . . Core 4 | . . 1 . . 1 1 . . . . 1 . Reactor 1 | . . . . . . . . . 1 . . . Propulsion 36 | . 2 . 2 . 9 8 1 1 6 . 5 2 Treads 14 | . 2 . 2 . 2 5 . 1 2 . . . Leg 7 | . . . . . 1 . . . 4 . 2 . Wheel 2 | . . . . . . 1 1 . . . . . Hover 9 | . . . . . 2 2 . . . . 3 2 Flight 4 | . . . . . 4 . . . . . . . Utility 39 | . 3 . 1 . 5 11 1 3 8 . 6 1 Device 15 | . 2 . . . 3 5 1 . 1 . 3 . Storage 5 | . 1 . 1 . . 1 . . 1 . . 1 Processor 13 | . . . . . . 3 . 3 6 . 1 . Hackware 1 | . . . . . . 1 . . . . . . Protection 5 | . . . . . 2 1 . . . . 2 . Artifact . | . . . . . . . . . . . . . Weapon 29 | . 2 . . . 3 5 2 2 4 2 3 6 Energy Gun 4 | . . . . . . . . 1 1 . . 2 Energy Cannon 1 | . . . . . . 1 . . . . . . Ballistic Gun 16 | . 2 . . . 1 2 1 . 3 2 2 3 Ballistic Cannon 1 | . . . . . 1 . . . . . . . Launcher 1 | . . . . . . . 1 . . . . . Special Weapon 3 | . . . . . 1 2 . . . . . . Impact Weapon 1 | . . . . . . . . . . . 1 . Slashing Weapon . | . . . . . . . . . . . . . Piercing Weapon 2 | . . . . . . . . 1 . . . 1 Special Melee Weapon . | . . . . . . . . . . . . . Unidentified Prototypes 8 | . . . . . 1 . . . 6 . 1 . Parts Lost 46 | . 1 . . . 13 8 5 5 . 1 . 13 Power 4 | . . . . . 1 . 1 . . 1 . 1 Propulsion 19 | . . . . . 6 4 1 3 . . . 5 Utility 7 | . . . . . 3 1 2 . . . . 1 Weapon 16 | . 1 . . . 3 3 1 2 . . . 6 Highest Loss Streak 12 | . 1 . . . 7 5 3 4 . 1 . 12 To Critical Strikes . | . . . . . . . . . . . . . Average Slot Usage (%) 88 | . 97 100 100 100 65 83 77 73 93 97 93 86 Engine 2 | . 14 1 . . . . 5 7 4 . . . Core 3 | . . 12 14 14 2 5 1 . . . 2 5 Treads 19 | . 17 28 28 28 21 26 32 19 19 7 2 . Leg 5 | . 10 . . . 2 . . . 6 30 19 . Wheel 1 | . . . . . . . 5 7 5 . . . Hover 2 | . . . . . . 2 . . . . 8 22 Device 7 | . 11 14 14 14 6 19 3 . . . 4 5 Storage 7 | . 14 14 14 14 8 . 7 7 6 7 6 5 Processor 15 | . . . . . . 6 9 15 29 30 32 32 Protection 1 | . . . . . 8 3 . . . . 1 . Energy Gun 2 | . 8 . . . . . . 4 7 . . . Ballistic Gun 12 | . 18 28 28 28 10 11 8 5 3 15 11 10 Piercing Weapon 1 | . . . . . . . . 4 4 . . . Naked Turns . | . . . . . . . . . . . . . Heaviest Build 34 | 14 18 20 30 30 34 20 26 23 26 25 22 27 Greatest Support 108 | 20 46 46 46 46 66 108 108 88 79 78 78 49 Greatest Overweight (x) 2 | . 1 . . . 1 2 . . . . . 1 Average Overweight (x) . | . . . . . . . . . . . . . Largest Inventory Capacity 15 | . 10 10 15 15 15 8 8 8 8 8 8 10 Average Capacity 8 | . 8 10 13 15 14 5 8 8 7 8 8 9 Most Carried 15 | . 10 10 14 13 15 7 7 8 8 8 8 10 Average Carried 7 | . 7 9 11 13 10 4 3 6 7 8 7 8 Final Capacity 15 | 8 10 10 15 15 5 8 8 8 8 8 8 5 Final Carried 14 | 6 10 10 14 13 5 7 7 8 8 8 8 3 Class Distribution -------------------- 55% | Scavenger-Mutant 31% | Mutant 6% | Scavenger-Skirmisher 4% | Scavenger-Scout Dominant Class ---------------- Mutant | -10/Materials Mutant | -10/Mines Mutant | -10/Exiles Mutant | -9/Mines Mutant | -8/Materials Scavenger-Mutant | -7/Factory Scavenger-Mutant | -7/Lower Caves Scavenger-Mutant | -7/Lower Caves Scavenger-Mutant | -7/Zion Scavenger-Mutant | -6/Proximity Caves Scavenger-Skirmisher | -6/Factory Scavenger-Scout | -6/Extension Resources | -11 -10 -10 -10 -9 -8 -7 -7 -7 -7 -6 -6 -6 ----------- Run | Scr Mat Min Exi Min Mat Fac Low Low Zio Pro Fac Ext Matter Collected 2627 | 174 182 113 . 67 400 559 275 246 190 79 219 123 Remotely . | . . . . . . . . . . . . . Salvage Created 3220 | . 619 144 . 43 597 899 190 152 . 50 247 279 Parts 139 | . 29 14 . 1 19 47 4 7 . 3 9 6 Haulers Intercepted 3 | . 1 . . . 1 1 . . . . . . Recyclers Shooed 10 | . 1 . . 1 6 . . . . . 2 . Parts Field Recycled . | . . . . . . . . . . . . . Retrieved Matter . | . . . . . . . . . . . . . Parts Self-Destructed 22 | . . . . . . . 4 6 1 11 . . Prevented 3 | . . . . . . . . . . 3 . . Kills | -11 -10 -10 -10 -9 -8 -7 -7 -7 -7 -6 -6 -6 ------- Run | Scr Mat Min Exi Min Mat Fac Low Low Zio Pro Fac Ext Combat Hostiles Destroyed 52 | . 15 8 . 1 6 12 3 3 . 1 1 2 Melee 3 | . . 1 . . . . . 2 . . . . Guns 45 | . 15 7 . 1 4 12 1 1 . 1 1 2 Cannons 2 | . . . . . 2 . . . . . . . AOE 2 | . . . . . . . 2 . . . . . Classes Destroyed 10 | . 5 1 . . 3 1 . . . . . . Worker 8 | . . 1 . . . 4 . . . . 3 . Builder 3 | . 1 1 . . . . . . . . 1 . Hauler 3 | . 1 . . . 1 1 . . . . . . Recycler 8 | . . . . . 4 2 . . . . 1 1 Operator 1 | . 1 . . . . . . . . . . . Watcher 3 | . . . . . 2 1 . . . . . . Swarmer 9 | . 3 6 . . . . . . . . . . Grunt 32 | . 12 2 . 1 5 5 3 3 . . . 1 Sentry 6 | . . . . . 1 4 . . . . . 1 Programmer 5 | . . . . . . 3 . . . 1 1 . Decomposer 1 | . . . . . . . 1 . . . . . Packrat 1 | . . . . . . . 1 . . . . . Best Kill Streak 7 | . 7 3 . 1 3 4 2 3 . 1 2 1 Combat Bots Only 7 | . 7 3 . 1 2 4 2 3 . 1 1 1 Max Kills in Single Turn 2 | . 1 1 . 1 1 2 1 1 . 1 1 1 Gunslinging . | . . . . . . . . . . . . . Exploded 1 | . . . . . . . 1 . . . . . Melee 1 | . . 1 . . . . . 1 . . . . Uniques/NPCs Destroyed . | . . . . . . . . . . . . . Combat | -11 -10 -10 -10 -9 -8 -7 -7 -7 -7 -6 -6 -6 -------- Run | Scr Mat Min Exi Min Mat Fac Low Low Zio Pro Fac Ext Damage Taken 6928 | . 409 478 . 104 1600 1327 449 379 . 348 194 1640 Core 1822 | . 44 82 . 59 375 263 64 18 . 51 . 866 Absorbed by Shields . | . . . . . . . . . . . . . Regen/Repaired (Parts) 478 | . . . . . . . . . 478 . . . Core Remaining (%) 50 | 100 . . . 26 31 . . . . 43 . . Volleys Fired 245 | . 36 28 . 4 64 48 21 10 . 8 11 15 Largest 2 | . 2 2 . 2 2 2 1 2 . 2 2 2 Hottest 89 | . 60 40 . 40 44 89 36 61 . 46 46 56 Shots Fired 394 | . 68 56 . 8 80 81 21 18 . 16 20 26 Gun 351 | . 68 56 . 8 56 75 8 18 . 16 20 26 Cannon 25 | . . . . . 24 1 . . . . . . Launcher 13 | . . . . . . . 13 . . . . . Special 5 | . . . . . . 5 . . . . . . Kinetic 351 | . 45 56 . 8 80 75 8 18 . 16 20 25 Thermal 5 | . . . . . . 5 . . . . . . Explosive 13 | . . . . . . . 13 . . . . . Electromagnetic 25 | . 23 . . . . 1 . . . . . 1 Robot Hit Streak 21 | . 15 14 . 10 14 16 6 4 . 16 21 11 Robot Miss Streak 6 | . 2 5 . . 2 6 3 4 . . 1 1 Penetration Max 1 | . . . . . . 1 . . . . . . Secondary Targets 3 | . . 1 . . 1 . . 1 . . . . Max Gunslinging Chain 1 | . . 1 . . 1 . . 1 . . . . Shots Hit Robots 305 | . 52 32 . 8 61 63 8 20 . 16 19 26 Core Hits 182 | . 34 14 . 2 24 60 17 12 . 3 5 11 Critical Kills 1 | . . . . . . 1 . . . . . . Critical Parts Destroyed 7 | . 1 . . . . 2 . . . . 1 3 Critical Strikes 9 | . 1 . . . 1 3 . . . . 1 3 Destroy 7 | . 1 . . . . 3 . . . . . 3 Blast 1 | . . . . . 1 . . . . . . . Smash 1 | . . . . . . . . . . . 1 . Melee Attacks 20 | . . . . . . . . 2 1 . 9 8 Impact 9 | . . . . . . . . . . . 9 . Slashing . | . . . . . . . . . . . . . Piercing 11 | . . . . . . . . 2 1 . . 8 Sneak Attacks 4 | . . . . . . . . . . . 4 . Combat Hostiles . | . . . . . . . . . . . . . Follow-up Attacks . | . . . . . . . . . . . . . Damage Inflicted 5499 | . 613 380 . 82 875 1330 360 394 . 246 654 565 Guns 4083 | . 587 358 . 82 483 1267 158 329 . 246 245 328 Cannons 381 | . . . . . 381 . . . . . . . Explosions 289 | . . . . . . . 196 . . . . 93 Melee 618 | . . . . . . . . 65 . . 409 144 Ramming 83 | . 26 22 . . 11 18 6 . . . . . Kinetic 4270 | . 415 358 . 82 864 1267 158 329 . 246 245 306 Thermal 138 | . . . . . . 45 . . . . . 93 Explosive 196 | . . . . . . . 196 . . . . . Electromagnetic 194 | . 172 . . . . . . . . . . 22 Impact 409 | . . . . . . . . . . . 409 . Slashing . | . . . . . . . . . . . . . Piercing 209 | . . . . . . . . 65 . . . 144 Highest Corruption 6 | . . . . . 4 1 6 6 6 . . . Average Corruption 3 | . . . . . 4 1 4 6 6 . . . Corruption Purged . | . . . . . . . . . . . . . Corruption Blocked 17 | . . . . . . . . . . . 15 2 Effects 30 | . . . . . 2 5 8 12 3 . . . Message Errors 8 | . . . . . . 2 1 4 1 . . . Matter Fused 6 | . . . . . 1 . 2 3 . . . . Heat Flow Errors 5 | . . . . . 1 1 1 1 1 . . . Energy Discharges 3 | . . . . . . . 1 1 1 . . . Data Loss (minor) 4 | . . . . . . . 2 2 . . . . Data Loss (major) 1 | . . . . . . . 1 . . . . . Misfires 2 | . . . . . . 2 . . . . . . Alerts 1 | . . . . . . . . 1 . . . . Overload Shots . | . . . . . . . . . . . . . Overflow Damage 315 | . . . . . 7 . 8 . . . 289 11 Projectiles 7 | . . . . . 7 . . . . . . . Explosions 19 | . . . . . . . 8 . . . . 11 Melee 289 | . . . . . . . . . . . 289 . Knockbacks 4 | . 1 . . . 3 . . . . . . . Impact 1 | . 1 . . . . . . . . . . . Kinetic 3 | . . . . . 3 . . . . . . . Secondary . | . . . . . . . . . . . . . Self-Inflicted Damage 45 | . . . . . . . 45 . . . . . Shots 1 | . . . . . . . 1 . . . . . Rammed 13 | . 6 1 . . 3 2 1 . . . . . Targets Rammed 21 | . 8 4 . . 4 3 1 . . . 1 . Kicked 2 | . 1 . . . . . . . . . 1 . Crushed 6 | . 1 3 . . 1 1 . . . . . . Highest Temperature 236 | . 42 5 . . 86 236 113 116 225 16 . 19 Average Temperature 35 | . 21 5 . . 20 51 113 24 99 9 . 9 Received Heat Transfer 2133 | . 204 141 . 30 567 378 108 216 . 99 . 390 Siege Activations . | . . . . . . . . . . . . . Robots Corrupted . | . . . . . . . . . . . . . Combat Hostiles . | . . . . . . . . . . . . . Parts Fried 6 | . 2 . . . . . . . . . 4 . Impact Corruptions 5 | . . . . . . . . . . . 5 . Robots Melted . | . . . . . . . . . . . . . Combat Hostiles . | . . . . . . . . . . . . . Parts Melted . | . . . . . . . . . . . . . Heat Transferred 298 | . . . . . . 148 . . . . . 150 Parts Sabotaged . | . . . . . . . . . . . . . Parts Stolen 1 | . . . . . . . . 1 . . . . Parts Stripped . | . . . . . . . . . . . . . Power Chain Reactions 1 | . . . . . . . . . . . . 1 Missiles Intercepted . | . . . . . . . . . . . . . Alert | -11 -10 -10 -10 -9 -8 -7 -7 -7 -7 -6 -6 -6 ------- Run | Scr Mat Min Exi Min Mat Fac Low Low Zio Pro Fac Ext Peak Influence 324 | . 315 290 . 35 90 252 . . . . 239 324 Initial 212 | . . 90 . . 13 13 . . . . 212 30 Average 124 | . 197 218 . 28 36 109 . . . . 101 238 Maximum Alert Level 1 | . 1 1 . . . 1 . . . . 1 1 Low Security (%) 69 | . 39 28 . 100 100 93 . . . . 60 20 Level 1 30 | . 60 71 . . . 6 . . . . 39 79 Level 2 . | . . . . . . . . . . . . . Level 3 . | . . . . . . . . . . . . . Level 4 . | . . . . . . . . . . . . . Level 5 . | . . . . . . . . . . . . . High Security . | . . . . . . . . . . . . . Max Security . | . . . . . . . . . . . . . Squads Dispatched 14 | . 2 . . . 2 7 . . . . 1 2 Investigation 1 | . . . . . . 1 . . . . . . Extermination 3 | . . . . . . 2 . . . . 1 . Reinforcement 9 | . 2 . . . 2 3 . . . . . 2 Assault . | . . . . . . . . . . . . . Garrison 1 | . . . . . . 1 . . . . . . Intercept . | . . . . . . . . . . . . . Searches Triggered . | . . . . . . . . . . . . . Construction Impeded 2 | . . . . . 1 . . . . . . 1 Haulers Reinforced . | . . . . . . . . . . . . . Active Scanning Responses . | . . . . . . . . . . . . . Cargo Convoy Interrupts 1 | . . . . . . . . . . . 1 . Stealth | -11 -10 -10 -10 -9 -8 -7 -7 -7 -7 -6 -6 -6 --------- Run | Scr Mat Min Exi Min Mat Fac Low Low Zio Pro Fac Ext Distress Signals 7 | . 2 . . . 1 . . . . . 1 3 Communications Jammed . | . . . . . . . . . . . . . Distress Signals . | . . . . . . . . . . . . . Times Spotted 118 | . 25 8 . 2 26 20 3 6 1 13 2 12 Peak Tracking Total 8 | . 7 3 . 2 8 5 3 4 1 4 1 4 Tactical Retreats 1 | . . . . . . 1 . . . . . . Traps | -11 -10 -10 -10 -9 -8 -7 -7 -7 -7 -6 -6 -6 ------- Run | Scr Mat Min Exi Min Mat Fac Low Low Zio Pro Fac Ext Traps Triggered 4 | . . . . . . 1 . . . . 1 2 Indirectly . | . . . . . . . . . . . . . Trap Hack Attempts . | . . . . . . . . . . . . . Triggered . | . . . . . . . . . . . . . Disarmed . | . . . . . . . . . . . . . Reprogrammed . | . . . . . . . . . . . . . Reused . | . . . . . . . . . . . . . Traps Extracted . | . . . . . . . . . . . . . Installed . | . . . . . . . . . . . . . Triggered 2 | . . . . . . . . . . . 2 . Power Sources Rigged 11 | . . . . . 9 2 . . . . . . Exploded 9 | . . . . 1 8 . . . . . . . Machines | -11 -10 -10 -10 -9 -8 -7 -7 -7 -7 -6 -6 -6 ---------- Run | Scr Mat Min Exi Min Mat Fac Low Low Zio Pro Fac Ext Machines Disabled 2 | . . . . . 1 . . . . . . 1 Max in Single Turn 1 | . . . . . 1 . . . . . . . Energy Cycler 2 | . . . . . . . . . . . . 2 Machines Sabotaged . | . . . . . . . . . . . . . Garrisons Compromised 1 | . . . . . . . . . . . 1 . Overloaded Fab Kills . | . . . . . . . . . . . . . Hacking | -11 -10 -10 -10 -9 -8 -7 -7 -7 -7 -6 -6 -6 --------- Run | Scr Mat Min Exi Min Mat Fac Low Low Zio Pro Fac Ext Machines Accessed 6 | . 3 . 1 . . 2 . . . . . . Terminals 4 | . 3 . . . . 1 . . . . . . Fabricators . | . . . . . . . . . . . . . Repair Stations . | . . . . . . . . . . . . . Recycling Units 1 | . . . . . . 1 . . . . . . Scanalyzers . | . . . . . . . . . . . . . Garrison Access . | . . . . . . . . . . . . . Total Hacks 14 | . 8 . 1 . . 5 . . . . . . Successful 6 | . 4 . 1 . . 1 . . . . . . Failed 7 | . 3 . . . . 4 . . . . . . Catastrophic 1 | . 1 . . . . . . . . . . . Database Lockouts 1 | . 1 . . . . . . . . . . . Manual 31 | . 5 . 1 . . 4 . . . . 18 3 Terminals 10 | . 8 . . . . 2 . . . . . . Fabricators . | . . . . . . . . . . . . . Repair Stations . | . . . . . . . . . . . . . Recycling Units 3 | . . . . . . 3 . . . . . . Scanalyzers . | . . . . . . . . . . . . . Garrison Access . | . . . . . . . . . . . . . Terminal Hacks 5 | . 4 . 1 . . . . . . . . . Robot Analysis 1 | . 1 . . . . . . . . . . . Branch Access Points 1 | . 1 . . . . . . . . . . . Terminal Index 1 | . 1 . . . . . . . . . . . Zone Layout 1 | . 1 . . . . . . . . . . . EX-Prototype ID Bank 1 | . . . 1 . . . . . . . . . Fabricator Hacks . | . . . . . . . . . . . . . Repair Station Hacks . | . . . . . . . . . . . . . Recycling Unit Hacks 1 | . . . . . . 1 . . . . . . Report Inventory 1 | . . . . . . 1 . . . . . . Scanalyzer . | . . . . . . . . . . . . . Garrison Access Hacks . | . . . . . . . . . . . . . Unauthorized Hacks . | . . . . . . . . . . . . . Terminals . | . . . . . . . . . . . . . Fabricators . | . . . . . . . . . . . . . Repair Stations . | . . . . . . . . . . . . . Recycling Units . | . . . . . . . . . . . . . Scanalyzers . | . . . . . . . . . . . . . Garrison Access . | . . . . . . . . . . . . . Data Cores Recovered 1 | . 1 . . . . . . . . . . . Used . | . . . . . . . . . . . . . Hacking Detections 4 | . 2 . . . . 2 . . . . . . Full Trace Events 1 | . 1 . . . . . . . . . . . Feedback Events . | . . . . . . . . . . . . . Feedback Blocked . | . . . . . . . . . . . . . Robot Schematics Acquired 4 | . . . . . . . . . 4 . . . Robots Built . | . . . . . . . . . . . . . Authchips . | . . . . . . . . . . . . . Time . | . . . . . . . . . . . . . Total Robot Build Rating . | . . . . . . . . . . . . . Part Schematics Acquired 15 | . . . . . . . . . 15 . . . Parts Built . | . . . . . . . . . . . . . Authchips . | . . . . . . . . . . . . . Time . | . . . . . . . . . . . . . Total Part Build Rating . | . . . . . . . . . . . . . Parts Repaired . | . . . . . . . . . . . . . Time . | . . . . . . . . . . . . . Parts Recycled . | . . . . . . . . . . . . . Recycled Matter . | . . . . . . . . . . . . . Retrieved Matter . | . . . . . . . . . . . . . Retrieved Components . | . . . . . . . . . . . . . Parts Scanalyzed . | . . . . . . . . . . . . . Part Schematics Acquired . | . . . . . . . . . . . . . Parts Damaged . | . . . . . . . . . . . . . Bothacking | -11 -10 -10 -10 -9 -8 -7 -7 -7 -7 -6 -6 -6 ------------ Run | Scr Mat Min Exi Min Mat Fac Low Low Zio Pro Fac Ext Used RIF Installer . | . . . . . . . . . . . . . Robots Hacked . | . . . . . . . . . . . . . Non-combat . | . . . . . . . . . . . . . Combat . | . . . . . . . . . . . . . Robot Hacks Applied . | . . . . . . . . . . . . . Relay Couplers Released 4 | . . . . . . 4 . . . . . . Programmers 4 | . . . . . . 4 . . . . . . Fabnet Peak Effective % . | . . . . . . . . . . . . . Robots Rewired 5 | . . . . . . . . . . . . 5 Allies Hacked . | . . . . . . . . . . . . . Hacks Repelled . | . . . . . . . . . . . . . Allies | -11 -10 -10 -10 -9 -8 -7 -7 -7 -7 -6 -6 -6 -------- Run | Scr Mat Min Exi Min Mat Fac Low Low Zio Pro Fac Ext Total Allies 17 | . . 1 . . . . . . 4 . 2 10 Largest Group 9 | . . 1 1 . . . . . 4 4 2 9 Highest-Rated Group 342 | . . 31 31 . . . . . 155 155 70 342 Highest-Rated Ally 81 | . . 31 31 . . . . . 42 42 40 81 Zionite Dispatches 4 | . . . . . . . . . . . 3 1 Recon 1 | . . . . . . . . . . . 1 . Hacker 1 | . . . . . . . . . . . . 1 Demo 1 | . . . . . . . . . . . 1 . Kinetic Resupply 1 | . . . . . . . . . . . 1 . Total Orders 10 | . . . . . 1 5 1 . . . 3 . DROP 1 | . . . . . . . . . . . 1 . EXPLORE 7 | . . . . . 1 5 1 . . . . . RETURN 2 | . . . . . . . . . . . 2 . Ally Attacks 68 | . . . . . . . . . 8 23 2 35 Total Damage 3466 | . . . . . . . . . 54 1434 67 1911 Kills 30 | . . . . . . . . . 1 14 1 14 Allies Corrupted 1 | . . . . . . . . . . 1 . . Allies Melted . | . . . . . . . . . . . . . Intel | -11 -10 -10 -10 -9 -8 -7 -7 -7 -7 -6 -6 -6 ------- Run | Scr Mat Min Exi Min Mat Fac Low Low Zio Pro Fac Ext Robot Analysis Total 1 | . 1 . . . . . . . . . . . Derelict Logs Recovered 4 | . . . . . . . 2 1 1 . . . Drone Launches 9 | . . . . . 1 5 1 . . . 2 . Drone Recoveries 8 | . . . . . 1 5 . . . . 2 . Zionite Intel Received 2 | . . . . . . . . . . . 2 . Depthwide Sectors/0 1 | . . . . . . . . . . . 1 . Depthwide Sectors/-1 1 | . . . . . . . . . . . 1 . Exploration | -11 -10 -10 -10 -9 -8 -7 -7 -7 -7 -6 -6 -6 ------------- Run | Scr Mat Min Exi Min Mat Fac Low Low Zio Pro Fac Ext Turns Passed 8678 | . 500 364 1000 33 765 1367 512 531 1821 381 1017 387 Spaces Moved 5255 | 1 249 169 617 14 388 789 255 300 1122 247 690 414 Core 138 | . . . . . . 132 . . . . . 6 Treads 3276 | . 151 169 617 14 305 523 255 300 942 . . . Legs 1075 | 1 98 . . . . . . . 180 247 549 . Wheels . | . . . . . . . . . . . . . Hover 549 | . . . . . . . . . . . 141 408 Flight 217 | . . . . . 83 134 . . . . . . Fastest Speed 34 | 120 120 160 160 160 34 37 160 160 132 132 58 48 Average Speed 135 | 120 144 160 160 160 134 124 160 160 155 132 113 51 Slowest Speed 240 | 120 190 160 160 160 240 160 160 160 160 132 132 110 Overloaded Moves . | . . . . . . . . . . . . . Propulsion Burnouts . | . . . . . . . . . . . . . Robots Hopped 4 | . . . . . 4 . . . . . . . Cave-ins Triggered 2 | . . . . . 1 . 1 . . . . . Exploration Rate (%) 51 | 2 62 41 78 9 62 44 98 44 90 56 25 56 Regions Visited 12 Branch Regions 8 Pre-discovered Areas 16 | . . . . . . . 1 . 1 . 14 . Known Exits Taken 5 | . 1 . . . . 1 . . 1 1 1 . Unknown Exits Taken 7 | 1 . 1 1 1 1 . 1 1 . . . . Scrap Searched 8 | . . . . . . . 3 3 2 . . . Spaces Dug 126 | . . . . . . . 121 . . . 5 . Terrain Destroyed 193 | . . . . . 4 1 183 . . . 5 . Melee 5 | . . . . . . . . . . . 5 . Projectile 5 | . . . . . 4 1 . . . . . . AOE 183 | . . . . . . . 183 . . . . . Terrain Rammed . | . . . . . . . . . . . . . Walls Destroyed . | . . . . . . . . . . . . . Machines Disabled . | . . . . . . . . . . . . . Actions | -11 -10 -10 -10 -9 -8 -7 -7 -7 -7 -6 -6 -6 --------- Run | Scr Mat Min Exi Min Mat Fac Low Low Zio Pro Fac Ext Total 6419 | . 321 211 632 18 561 1086 335 329 1198 289 889 550 Wait 521 | . 4 3 . . 32 202 48 7 30 31 146 18 Move 5236 | . 248 168 616 13 381 788 253 299 1121 246 689 414 Hop 2 | . . . . . 2 . . . . . . . Pick Up 70 | . 9 3 8 . 20 8 4 4 7 . 6 1 Fast Attach 64 | . 4 1 . . 7 18 1 5 17 2 5 4 Attach 28 | . 1 . . . 11 6 4 1 . . 3 2 Detach 6 | . . . . . 3 2 . . 1 . . . Swap 21 | . 3 . 3 . 1 2 . . 2 . 7 3 Drop 91 | . 8 4 5 1 27 7 2 1 19 2 12 3 Fire 245 | . 36 28 . 4 64 48 21 10 . 8 11 15 Melee 20 | . . . . . . . . 2 1 . 9 8 Ram . | . . . . . . . . . . . . . Kick 2 | . 1 . . . . . . . . . 1 . Crush 19 | . 7 4 . . 4 3 1 . . . . . Escape Stasis 21 | . . . . . . . 1 . . . . 20 Rewire 62 | . . . . . . . . . . . . 62 Trap 11 | . . . . . 9 2 . . . . . . Miscellaneous . | . . . . . . . . . . . . . Route ------- -11/Scrapyard -10/Materials (discovered 2 exits: [*Mat] / *Min) -10/Mines -10/Exiles (discovered 2 exits: [*Min x2]) -9/Mines -8/Materials (discovered 2 exits: *Fac x2) -7/Factory (discovered 4 exits: *Fac x3 / *Low) -7/Lower Caves -7/Lower Caves (discovered 2 exits: *Fac / [*Zio]) -7/Zion -6/Proximity Caves -6/Factory (discovered 5 exits: *Fac x3 / Low / *Ext) -6/Extension (discovered 1 exit: *Fac) History --------- Turn | Location | Event 1 | -11/Scrapyard | Discovered new exit (range 0) 1 | -11/Scrapyard | Entered Materials 4 | -10/Materials | Central database locked down 120 | -10/Materials | Identified exit to Mines 124 | -10/Materials | Destroyed 7 combat bots 275 | -10/Materials | Discovered new exit (range 4) 304 | -10/Materials | Build established: Mutant 501 | -10/Materials | Entered Mines 712 | -10/Mines | Core integrity fell below 50% 799 | -10/Mines | Received a Mining Laser from a helpful Derelict 858 | -10/Mines | Deemed a non-threat by the Exiles lab entrance 858 | -10/Mines | Discovered new exit (range 5) 865 | -10/Mines | Entered Exiles 865 | -10/Exiles | Accompanied by 1 ally 891 | -10/Exiles | Discovered new exit (range 15) 905 | -10/Exiles | Met 8R-AWN 933 | -10/Exiles | Met EX-HEX 978 | -10/Exiles | Met EX-BIN 999 | -10/Exiles | Aligned with FarCom system 1001 | -10/Exiles | Given EX-Vault access code 1044 | -10/Exiles | Opened EX-Vault 1054 | -10/Exiles | Found PSU Rigger 1058 | -10/Exiles | Found Supersonic Drone Bay 1064 | -10/Exiles | Found Trap Reconfigurator 1105 | -10/Exiles | Warned to stay clear of 0b10 Research branches 1380 | -10/Exiles | Met EX-DEC 1668 | -10/Exiles | Visited The Gauntlet 1812 | -10/Exiles | Discovered new exit (range 14) 1865 | -10/Exiles | Stole three prototypes: Trap Reconfigurator, Supersonic Drone Bay, PSU Rigger 1865 | -10/Exiles | Entered Mines 1866 | -9/Mines | Discovered new exit (range 11) 1898 | -9/Mines | Entered Materials 1898 | -8/Materials | Evolved 4 slots: Propulsion x1, Utility x3 1910 | -8/Materials | Discovered new exit (range 61) 2434 | -8/Materials | Discovered new exit (range 11) 2603 | -8/Materials | Crushed by falling debris 2624 | -8/Materials | Core integrity fell below 50% 2659 | -8/Materials | Lost 7 parts (5n2u) 2663 | -8/Materials | Entered Factory 2663 | -7/Factory | Evolved 2 slots: Propulsion x2 2665 | -7/Factory | FarCom data flow suspended 2775 | -7/Factory | Lost 5 parts (4n1w) 2925 | -7/Factory | Discovered new exit (range 111) 2939 | -7/Factory | Discovered new exit (range 99) 2952 | -7/Factory | Discovered new exit (range 109) 3040 | -7/Factory | Discovered new exit (range 44) 3126 | -7/Factory | Garrison activated, responded to threat 3213 | -7/Factory | Build established: Scavenger-Mutant 3736 | -7/Factory | Identified exit to Factory 3943 | -7/Factory | Identified exit to Lower Caves 4030 | -7/Factory | Entered Lower Caves 4044 | -7/Lower Caves | Learned location of Zion (-7) 4047 | -7/Lower Caves | Discovered new exit (range 150) 4164 | -7/Lower Caves | Crushed by falling debris 4195 | -7/Lower Caves | Lost 3 parts (1p1n1u) 4347 | -7/Lower Caves | Learned 8 Factory zone layouts 4542 | -7/Lower Caves | Entered another Lower Caves area 4542 | -7/Lower Caves | Spotted F0-MW0(f) 4543 | -7/Lower Caves | Encountered a Master Thief 4550 | -7/Lower Caves | PSU Rigger stolen by Master Thief 4624 | -7/Lower Caves | Encountered a Warlord checkpoint 4638 | -7/Lower Caves | Discovered exit to Factory (range 8) 4777 | -7/Lower Caves | Lost 4 parts (2n2w) 5042 | -7/Lower Caves | Discovered new exit (range 5) 5060 | -7/Lower Caves | Learned Factory security intel 5073 | -7/Lower Caves | Entered Zion 5144 | -7/Zion | System corruption cleaned by Quarantine Array 5176 | -7/Zion | Learned Factory terminal intel 5272 | -7/Zion | Given the Hacking Drone Bay 5531 | -7/Zion | Learned location of Armory (-3) 5536 | -7/Zion | Acquired unknown access codes intercepted by a Zionite 5640 | -7/Zion | Imprinted 5643 | -7/Zion | Declared Zion's savior 5735 | -7/Zion | Found CR-A16's Pointy Stick 5867 | -7/Zion | Learned location of 1 exit from Factory 6051 | -7/Zion | Visited the Megawrench Repair Shop 6051 | -7/Zion | Megawrench repaired 11 parts 6215 | -7/Zion | Discovered new exit (range 20) 6381 | -7/Zion | Given A8's code to call for help 6585 | -7/Zion | Found Prototype Device 6585 | -7/Zion | Identified Hacking Drone Bay 6633 | -7/Zion | Found Prototype Processor 6633 | -7/Zion | Identified Exp. Signal Interpreter 6636 | -7/Zion | Found Prototype Processor 6636 | -7/Zion | Identified Exp. Targeting Computer 6666 | -7/Zion | Found Prototype Processor 6666 | -7/Zion | Identified Exp. Core Analyzer 6669 | -7/Zion | Found Prototype Processor 6669 | -7/Zion | Identified Exp. Terrain Scan Processor 6674 | -7/Zion | Found Prototype Processor 6674 | -7/Zion | Identified Spectral Analyzer 6861 | -7/Zion | Identified exit to Proximity Caves 6894 | -7/Zion | Entered Proximity Caves 6894 | -6/Proximity Caves | Accompanied by 4 allies 7015 | -6/Proximity Caves | Attracted the attention of an 0b10 checkpoint 7023 | -6/Proximity Caves | Core integrity fell below 50% 7242 | -6/Proximity Caves | Discovered exit to Factory (range 21) 7275 | -6/Proximity Caves | Entered Factory 7275 | -6/Factory | Accompanied by 1 ally 7275 | -6/Factory | Evolved 2 slots: Utility x2 7276 | -6/Factory | Identified exit to Factory 7277 | -6/Factory | Identified exit to Extension 7277 | -6/Factory | Identified exit to Lower Caves 7279 | -6/Factory | Loaded intel: 28 terminal locations 7281 | -6/Factory | Identified exit to DSF 7362 | -6/Factory | Zion Kinetic Resupply teleported in 7485 | -6/Factory | Zion Recon squad teleported in 7566 | -6/Factory | Discovered exit to Factory (range 21) 7588 | -6/Factory | Discovered exit to Factory (range 20) 7703 | -6/Factory | Retrieved Zion intel report: Depthwide Sectors/-1 7862 | -6/Factory | Build established: Scavenger-Skirmisher 7940 | -6/Factory | Cargo convoy interrupted 8251 | -6/Factory | Retrieved Zion intel report: Depthwide Sectors/0 8254 | -6/Factory | Zion Demo squad teleported in 8292 | -6/Factory | Entered Extension 8292 | -6/Extension | Accompanied by 1 ally 8306 | -6/Extension | Energy Cycler disabled 8306 | -6/Extension | Rescued a captive Derelict 8313 | -6/Extension | Rescued a captive Derelict 8316 | -6/Extension | Rescued a captive Derelict 8322 | -6/Extension | Rescued a captive Derelict 8326 | -6/Extension | Rescued a captive Derelict 8327 | -6/Extension | Rescued a captive Derelict 8328 | -6/Extension | Rescued a captive Derelict 8391 | -6/Extension | Build established: Scavenger-Scout 8438 | -6/Extension | Zion Hacker squad teleported in 8442 | -6/Extension | Found Launcher Loader 8616 | -6/Extension | Spotted B-75 Beast 8616 | -6/Extension | Spotted B-75 Beast 8627 | -6/Extension | Discovered exit to Factory (range 12) 8664 | -6/Extension | Core integrity fell below 50% 8676 | -6/Extension | Core integrity fell below 20% 8679 | -6/Extension | Destroyed by B-75 Beast with Magnetic Acceleration Cannon Last Messages --------------- 08670_ Hyp. Gauss Rifle destroyed. 08670_ Knocked back. 08670_ U-05 Engineer lays Concrete. 08671_ Exp. Targeting Computer destroyed. 08671_ U-05 Engineer lays Concrete. 08672_ Acquired Riot Gun. 08672_ U-05 Engineer lays Concrete. 08673_ Riot Gun destroyed. 08673_ U-05 Engineer lays Concrete. 08674_ Acquired Riot Gun. 08674_ U-05 Engineer lays Concrete. 08675_ Y-54 Guardian destroyed. 08675_ Chain reaction triggered in Lgt. Ion Engine. 08675_ Destroyed Welding Torch. 08676_ Riot Gun destroyed. 08676_ Knocked back. 08678_ Connecting with Door Terminal... 08678_ Transmitting encrypted signal... >>\\7PLH Transmitting encrypted signal... Map ----- +----------------------------------------------------+ | ?????????????????##### #?????????????????????????? | | ?????????????????????? #?????????????????????????? | | ?????????????????????? #?????????????????????????? | | ?????????????????????# #?????????????????????????? | | ?????????????????????# #?????????????????????????? | | ?????????????????????# #?????????????????????????? | | ?????????????????????# #?????????????????????????? | | ?????????????????????# #?????????????????????????? | | ?????????????????????#%#??????????#??????????????? | | ?????????????????????#%#??#####?? #??????????????? | | ???????????????????###=### ## ### ###????????????? | | ???????????????????#**%% "" ""#????????????? | | ???????????????????#!%[[[ " " #????????????? | | ???????????????????#%=%%[ % #????????????? | | ????????##?????????# [*% #????????????? | | #####"###"########## * #########????? | | u ???? | | ! ???? | | ]% ! = ???? | | %%! =%* ???? | | t !%g%! R ????? | | ####################!%!/BB #????????????? | | ??????????????????##[![%BB #????????????? | | ?????????????????## !!!% =%% #????????????? | | ?????????????????# ; !!! #????????????? | | ?????????????????##; % @ #????????????? | | ??????????????????##;#;##T# #######????????????? | | ??????????????????# ###?###?< #??????????????????? | | ?????????????????????????????##??????????????????? | | | | | | | | | | | | | | | | | | | | | | | | | | | | | | | | | | | | | | | | | | | +----------------------------------------------------+ Best States ------------- Heat Dissipation 53 Energy Generation 21 Energy Capacity 310 Matter Stores 300 Matter Capacity 300 Sight Range 24 Robot Scan Range 15 Terrain Scan Density 1010 Additional Mass Support 9 Armor Coverage 300 Evasion (%) 62 Targeting Accuracy 12 Target Analysis 8 Core Analysis 6 Armor Integrity Analysis 40 Recoil Reduction 5 Salvage Targeting 1 Offensive Hacking 10 Item Schematics ----------------- Power Maul | -7/Zion | Archive Imp. Hardlight Generator | -7/Zion | Archive Mak. Sword | -7/Zion | Archive Hvy. Machine Gun | -7/Zion | Archive Remote Datajack | -7/Zion | Archive Thermal Shield | -7/Zion | Archive Mak. Thermal Plating | -7/Zion | Archive Adv. Trap Extractor | -7/Zion | Archive Mapping Drone Bay | -7/Zion | Archive Flak Gun | -7/Zion | Archive Bore Cannon | -7/Zion | Archive Xenon Bombardment Thruster | -7/Zion | Archive Imp. Target Analyzer | -7/Zion | Archive Proton Cannon | -7/Zion | Archive Hvy. Battle Rifle | -7/Zion | Archive Robot Schematics ------------------ B-48 Gladiator | -7/Zion | Archive H-55 Commando | -7/Zion | Archive X-57 Shotgunner | -7/Zion | Archive H-77 Assassin | -7/Zion | Archive Fabricated ------------ Nothing Alien Tech Used ----------------- None Achievements -------------- None Challenges ------------ None Game ------ Seed TeslaGuidedSource Manual? 0 Play Time 01:18:22 Cumulative 238.5 hours Start 2022.06.14 @ 05:59:39 End 2022.06.14 @ 15:20:39 Sessions 4 Manual Loads 0 Difficulty Rogue Special Mode None Game No. 294 Rogue 294 Adventurer 0 Explorer 0 Win Type - Total 11 Types 8/0/2/1/0/0/0/0/0 Lore% 69 Gallery% 85 Achievement% 74 Wizard Run 0 Options --------- ASCII 0 Keyboard 0 Movement Numpad Keybinds 0 Fullscreen 1 Font 18/Terminus Map View 76x50 Tactical HUD 1 Map Filters NONE Filters NONE Steam 1 RUN: f95c6ddb-dc37-4f20-bd07-a08f5a93b610